fUST/lending_fUST_20250820
["ID","MTS","AMOUNT","RATE_DAILY","PERIOD"]
[380239377,1755622267276,-2946.82,0.00021917,2]
[380239378,1755622267285,-810.05,0.00021917,2]
[380239379,1755622267295,-1509.61,0.00021917,2]
[380239380,1755622267305,-1082.62,0.00021917,2]
[380239381,1755622267314,-480.0,0.00021917,2]
[380239382,1755622267323,-2422.45,0.00021917,2]
[380239383,1755622267335,-516.51,0.00021917,2]
[380239384,1755622267345,-480.0,0.00021917,2]
[380239385,1755622267354,-480.0,0.00021917,2]
[380239386,1755622267363,-480.0,0.00021917,2]
[380239387,1755622267373,-480.0,0.00021917,2]
[380239388,1755622267384,-480.0,0.00021917,2]
[380239389,1755622267393,-2620.55,0.00021917,2]
[380239390,1755622267402,-480.0,0.00021917,2]
[380239391,1755622267516,-604.32,0.00021917,2]
[380239392,1755622267525,-846.8,0.00021917,2]
[380239393,1755622267535,-480.0,0.00021917,2]
[380239394,1755622267544,-663.09,0.00021917,2]
[380239395,1755622267553,-684.86894654,0.00021917,2]
[380239396,1755622267562,-519.86,0.00021917,2]
[380239397,1755622267572,-2167.0,0.00021917,2]
[380239398,1755622267581,-705.07,0.00021917,2]
[380239399,1755622267590,-7328.71,0.00021917,2]
[380239400,1755622267600,-538.37,0.00021917,2]
[380239401,1755622267610,-590.33,0.00021917,2]
[380239402,1755622267620,-962.85309979,0.00021918,2]
[380239403,1755622267630,-1000.0,0.00021918,2]
[380239404,1755622267641,-423.64953265,0.00021918,2]
[380239405,1755622267651,-370.136155,0.00021918,2]
[380239406,1755622267661,-370.136155,0.00021918,2]
[380239407,1755622267671,-370.136155,0.00021918,2]
[380239408,1755622267681,-370.136155,0.00021918,2]
[380239409,1755622267693,-370.136155,0.00021918,2]
[380239410,1755622267703,-370.136155,0.00021918,2]
[380239411,1755622267713,-370.136155,0.00021918,2]
[380239412,1755622267728,-370.136155,0.00021918,2]
[380239413,1755622267737,-370.136155,0.00021918,2]
[380239414,1755622267746,-370.136155,0.00021918,2]
[380239415,1755622267757,-370.136155,0.00021918,2]
[380239416,1755622267767,-370.136155,0.00021918,2]
[380239417,1755622267777,-370.136155,0.00021918,2]
[380239418,1755622267787,-370.136155,0.00021918,2]
[380239419,1755622267797,-370.136155,0.00021918,2]
[380239420,1755622267807,-370.136155,0.00021918,2]
[380239421,1755622267817,-370.136155,0.00021918,2]
[380239422,1755622267827,-370.136155,0.00021918,2]
[380239423,1755622267836,-370.136155,0.00021918,2]
[380239424,1755622267846,-370.136159,0.00021918,2]
[380239425,1755622267855,-172.32766796,0.00021918,2]
[380239426,1755622267864,-173.0,0.00021918,2]
[380239427,1755622267874,-173.0,0.00021918,2]
[380239428,1755622267884,-173.0,0.00021918,2]
[380239429,1755622267894,-175.56876457,0.00021918,2]
[380239430,1755622267903,-200.0,0.00021918,2]
[380239431,1755622267913,-153.0,0.00021918,2]
[380239432,1755622267922,-153.66610193,0.00021918,2]
[380239433,1755622267932,-153.0,0.00021918,2]
[380239434,1755622267946,-153.0,0.00021918,2]
[380239435,1755622267956,-153.0,0.00021918,2]
[380239436,1755622267965,-153.0,0.00021918,2]
[380239437,1755622267980,-153.0,0.00021918,2]
[380239438,1755622267991,-153.0,0.00021918,2]
[380239439,1755622268000,-153.0,0.00021918,2]
[380239440,1755622268010,-153.0,0.00021918,2]
[380239441,1755622268020,-153.0,0.00021918,2]
[380239442,1755622268029,-153.0,0.00021918,2]
[380239443,1755622268038,-153.0,0.00021918,2]
[380239444,1755622268048,-153.0,0.00021918,2]
[380239445,1755622268058,-153.0,0.00021918,2]
[380239446,1755622268067,-153.0,0.00021918,2]
[380239447,1755622268077,-153.0,0.00021918,2]
[380239448,1755622268086,-153.0,0.00021918,2]
[380239449,1755622268096,-153.0,0.00021918,2]
[380239450,1755622268106,-153.0,0.00021918,2]
[380239451,1755622268114,-153.0,0.00021918,2]
[380239452,1755622268124,-153.0,0.00021918,2]
[380239453,1755622268134,-151.0,0.00021918,2]
[380239454,1755622268143,-151.0,0.00021918,2]
[380239455,1755622268152,-151.0,0.00021918,2]
[380239456,1755622268161,-151.0,0.00021918,2]
[380239457,1755622268172,-876.0,0.00021918,2]
[380239458,1755622268181,-274.8275706,0.00021918,2]
[380239459,1755622268190,-316.71000373,0.00021918,2]
[380239460,1755622268200,-354.0,0.00021918,2]
[380239461,1755622268210,-308.70536724,0.00021947,8]
[380239462,1755622268223,-500.0,0.00021947,8]
[380239463,1755622268232,-1000.0,0.00021951,2]
[380239464,1755622268241,-1000.0,0.00021951,2]
[380239465,1755622268251,-1000.0,0.00021951,2]
[380239466,1755622268260,-1000.0,0.00021951,2]
[380239467,1755622268269,-1000.0,0.00021951,2]
[380239468,1755622268278,-1000.0,0.00021951,2]
[380239469,1755622268288,-1000.0,0.00021951,2]
[380239470,1755622268298,-1000.0,0.00021951,2]
[380239471,1755622268307,-1000.0,0.00021951,2]
[380239472,1755622268316,-1000.0,0.00021951,2]
[380239473,1755622268325,-1000.0,0.00021951,2]
[380239474,1755622268333,-1000.0,0.00021951,2]
[380239475,1755622268342,-1000.93493547,0.00021951,2]
[380239476,1755622268352,-1000.0,0.00021951,2]
[380239477,1755622268361,-1000.0,0.00021951,2]
[380239478,1755622268370,-1000.0,0.00021951,2]
[380239479,1755622268380,-421.49954408,0.00021951,2]
[380239480,1755622268389,-572.43883789,0.00021951,2]
[380239481,1755622268400,-500.0,0.00021951,2]
[380239482,1755622268408,-500.9478934,0.00021951,2]
[380239483,1755622268417,-500.62477378,0.00021951,2]
[380239484,1755622268426,-501.30889282,0.00021951,2]
[380239485,1755622268436,-1000.0,0.00021951,2]
[380239486,1755622268445,-1000.0,0.00021951,2]
[380239487,1755622268455,-1000.0,0.00021951,2]
[380239488,1755622268464,-1000.0,0.00021951,2]
[380239489,1755622268480,-1000.0,0.00021951,2]
[380239490,1755622268491,-1000.0,0.00021951,2]
[380239491,1755622268501,-1000.0,0.00021951,2]
[380239492,1755622268510,-500.0,0.00021951,2]
[380239493,1755622268517,-1000.0,0.00021951,2]
[380239494,1755622268527,-500.8067803,0.00021951,2]
[380239495,1755622268537,-1000.0,0.00021951,2]
[380239496,1755622268546,-1000.0,0.00021951,2]
[380239497,1755622268555,-1000.0,0.00021951,2]
[380239498,1755622268564,-1000.0,0.00021951,2]
[380239499,1755622268574,-1000.0,0.00021951,2]
[380239500,1755622268583,-1000.0,0.00021958,2]
[380239501,1755622268593,-8087.18579842,0.00021963,2]
[380239502,1755622268603,-1000.0,0.00021981,2]
[380239503,1755622268612,-1010.49,0.00022,7]
[380239504,1755622268621,-14443.47,0.00022,7]
[380239505,1755622268630,-5361.73,0.00022,7]
[380239506,1755622268640,-77117.37446213,0.00022,3]
[380239507,1755622268651,-160.0,0.00022,3]
[380239508,1755622268661,-12685.85563623,0.00022,7]
[380239509,1755622268671,-12685.85563623,0.00022,3]
[380239510,1755622268681,-151.0,0.00022,7]
[380239511,1755622268691,-151.0,0.00022,7]
[380239512,1755622268702,-151.0,0.00022,7]
[380239513,1755622268712,-151.0,0.00022,7]
[380239514,1755622268730,-151.0,0.00022,7]
[380239515,1755622268740,-165.0,0.00022,2]
[380239516,1755622268751,-375.88899365,0.00022,7]
[380239517,1755622268762,-375.88899365,0.00022,3]
[380239518,1755622268773,-528.6845513,0.00022,7]
[380239519,1755622268783,-528.6845513,0.00022,3]
[380239520,1755622268794,-160.0,0.00022,7]
[380239521,1755622268804,-160.0,0.00022,3]
[380239522,1755622268814,-44805.59,0.00022,2]
[380239523,1755622268823,-215.79176414,0.00022,7]
[380239524,1755622268833,-215.79176414,0.00022,3]
[380239525,1755622268843,-179.0,0.00022,2]
[380239526,1755622268852,-417.15472785,0.00022,7]
[380239527,1755622268862,-417.15472785,0.00022,3]
[380239528,1755622268872,-972.0,0.00022058,2]
[380239529,1755622268882,-637.0,0.00022058,2]
[380239530,1755622268892,-2153.0,0.00022058,2]
[380239531,1755622268901,-150.0,0.00022058,2]
[380239532,1755622268911,-150.0,0.00022058,2]
[380239533,1755622268921,-246.66784843,0.00022082,6]
[380239534,1755622268931,-679.47,0.000221,2]
[380239535,1755622268941,-560.0,0.00022111,2]
[380239536,1755622268950,-151.0,0.00022113,7]
[380239537,1755622268962,-5039.85994276,0.00022113,2]
[380239538,1755622268974,-5000.0,0.00022113,2]
[380239539,1755622268983,-5000.0,0.00022113,2]
[380239540,1755622268992,-5000.0,0.00022113,2]
[380239541,1755622269002,-5000.0,0.00022113,2]
[380239542,1755622269012,-6147.61852095,0.00022113,2]
[380239543,1755622269021,-5000.0,0.00022113,2]
[380239544,1755622269031,-5000.0,0.00022113,2]
[380239545,1755622269041,-5000.0,0.00022113,2]
[380239546,1755622269051,-5000.0,0.00022113,2]
[380239547,1755622269059,-1830.3035431,0.00022164,2]
[380239548,1755622269068,-2500.0,0.00022164,2]
[380239549,1755622269078,-1000.0,0.00022164,2]
[380239550,1755622269087,-2500.0,0.00022164,2]
[380239551,1755622269096,-2500.0,0.00022164,2]
[380239552,1755622269105,-6998.28,0.00022191,2]
[380239553,1755622269115,-235.2,0.00022191,7]
[380239554,1755622269125,-480.0,0.00022191,2]
[380239555,1755622269134,-966.56,0.00022191,2]
[380239556,1755622269143,-480.0,0.00022191,2]
[380239557,1755622269153,-480.0,0.00022191,2]
[380239558,1755622269162,-665.71,0.00022191,2]
[380239559,1755622269171,-4077.21,0.00022191,2]
[380239560,1755622269181,-1099.69,0.00022191,2]
[380239561,1755622269190,-530.28,0.00022191,2]
[380239562,1755622269200,-480.0,0.00022191,2]
[380239563,1755622269210,-174.35909237,0.00022191,2]
[380239564,1755622269223,-989.73,0.00022191,2]
[380239565,1755622269232,-820.05,0.00022191,2]
[380239566,1755622269242,-665.88,0.00022191,2]
[380239567,1755622269251,-1385.41,0.00022191,2]
[380239568,1755622269260,-685.48,0.00022191,2]
[380239569,1755622269270,-1090.94,0.00022191,2]
[380239570,1755622269278,-899.76,0.00022191,2]
[380239571,1755622269287,-1040.67,0.00022191,2]
[380239572,1755622269297,-496.36,0.00022191,2]
[380239573,1755622269306,-748.34,0.00022191,2]
[380239574,1755622269315,-480.0,0.00022191,2]
[380239575,1755622269324,-615.91,0.00022191,2]
[380239576,1755622269333,-973.55,0.00022191,2]
[380239577,1755622269343,-480.0,0.00022191,2]
[380239578,1755622269352,-480.0,0.00022191,2]
[380239579,1755622269362,-480.0,0.00022191,2]
[380239580,1755622269371,-3502.95,0.00022191,2]
[380239581,1755622269381,-2118.85,0.00022191,2]
[380239582,1755622269391,-1200.84,0.00022191,2]
[380239583,1755622269402,-577.5,0.00022191,2]
[380239584,1755622269410,-675.63,0.00022191,2]
[380239585,1755622269420,-535.82,0.00022191,2]
[380239586,1755622269428,-480.0,0.00022191,2]
[380239587,1755622269438,-1462.46,0.00022191,2]
[380239588,1755622269447,-958.15,0.00022191,2]
[380239589,1755622269456,-480.0,0.00022191,2]
[380239590,1755622269466,-684.55,0.00022191,2]
[380239591,1755622269480,-480.0,0.00022191,2]
[380239592,1755622269489,-809.37,0.00022191,2]
[380239593,1755622269597,-822.15,0.00022191,2]
[380239594,1755622269608,-1876.86,0.00022191,2]
[380239595,1755622269617,-485.73,0.00022191,2]
[380239596,1755622269626,-594.43,0.00022191,2]
[380239597,1755622269636,-2779.77,0.00022191,2]
[380239598,1755622269645,-611.1,0.00022191,2]
[380239599,1755622269655,-635.9,0.00022191,2]
[380239600,1755622269664,-480.0,0.00022191,2]
[380239601,1755622269674,-2697.84,0.00022191,2]
[380239602,1755622269684,-2946.82,0.00022191,2]
[380239603,1755622269693,-810.05,0.00022191,2]
[380239604,1755622269703,-1509.61,0.00022191,2]
[380239605,1755622269712,-1082.62,0.00022191,2]
[380239606,1755622269726,-187.49469322,0.00022191,2]
[380239607,1755622269735,-2422.45,0.00022191,2]
[380239608,1755622269745,-516.51,0.00022191,2]
[380239609,1755622269755,-480.0,0.00022191,2]
[380239610,1755622269765,-480.0,0.00022191,2]
[380239611,1755622269775,-480.0,0.00022191,2]
[380239612,1755622269785,-435.99981466,0.00022191,2]
[380239613,1755622269795,-480.0,0.00022191,2]
[380239614,1755622269805,-2620.55,0.00022191,2]
[380239615,1755622269814,-480.0,0.00022191,2]
[380239616,1755622269824,-604.32,0.00022191,2]
[380239617,1755622269833,-846.8,0.00022191,2]
[380239618,1755622269843,-480.0,0.00022191,2]
[380239619,1755622269853,-663.09,0.00022191,2]
[380239620,1755622269862,-519.86,0.00022191,2]
[380239621,1755622269872,-2167.0,0.00022191,2]
[380239622,1755622269881,-705.07,0.00022191,2]
[380239623,1755622269891,-7328.71,0.00022191,2]
[380239624,1755622269909,-538.37,0.00022191,2]
[380239625,1755622269928,-590.33,0.00022191,2]
[380239626,1755622269939,-179.0,0.00022192,7]
[380239627,1755622269953,-151.0,0.00022192,2]
[380239628,1755622269966,-151.0,0.00022192,2]
[380239629,1755622269980,-151.0,0.00022192,2]
[380239630,1755622269990,-876.0,0.00022192,2]
[380239631,1755622270000,-5112.20497454,0.00022197,2]
[380239632,1755622270008,-5000.0,0.00022197,2]
[380239633,1755622270018,-5000.0,0.00022197,2]
[380239634,1755622270027,-5000.0,0.00022197,2]
[380239635,1755622270038,-5000.0,0.00022197,2]
[380239636,1755622270048,-353.39902143,0.000222,69]
[380239637,1755622270058,-353.39902139,0.000222,69]
[380239638,1755622270067,-7529.65393196,0.00022271,2]
[380239639,1755622270077,-1000.0,0.00022278,2]
[380239640,1755622270086,-2200.0,0.00022299,2]
[380239641,1755622270096,-353.39902139,0.000223,69]
[380239642,1755622270105,-1000.0,0.00022343,2]
[380239643,1755622270116,-8087.18579842,0.00022376,2]
[380239644,1755622270126,-151.0,0.00022392,7]
[380239645,1755622270136,-151.0,0.00022392,7]
[380239646,1755622270145,-151.0,0.00022392,7]
[380239647,1755622270154,-151.0,0.00022392,7]
[380239648,1755622270163,-491.62736273,0.00022404,2]
[380239649,1755622270172,-1500.0,0.00022404,2]
[380239650,1755622270182,-1500.0,0.00022404,2]
[380239651,1755622270191,-1500.0,0.00022412,2]
[380239652,1755622270200,-1500.0,0.00022412,2]
[380239653,1755622270209,-1500.0,0.0002245,2]
[380239654,1755622270219,-1500.0,0.0002245,2]
[380239655,1755622270232,-1500.0,0.0002245,2]
[380239656,1755622270241,-1500.0,0.0002245,2]
[380239657,1755622270250,-1500.0,0.0002245,2]
[380239658,1755622270259,-1500.0,0.0002245,2]
[380239659,1755622270269,-6998.28,0.00022465,2]
[380239660,1755622270278,-480.0,0.00022465,2]
[380239661,1755622270287,-966.56,0.00022465,2]
[380239662,1755622270297,-480.0,0.00022465,2]
[380239663,1755622270306,-480.0,0.00022465,2]
[380239664,1755622270316,-665.71,0.00022465,2]
[380239665,1755622270325,-4077.21,0.00022465,2]
[380239666,1755622270335,-1099.69,0.00022465,2]
[380239667,1755622270344,-530.28,0.00022465,2]
[380239668,1755622270354,-480.0,0.00022465,2]
[380239669,1755622270363,-989.73,0.00022465,2]
[380239670,1755622270373,-820.05,0.00022465,2]
[380239671,1755622270382,-665.88,0.00022465,2]
[380239672,1755622270391,-1385.41,0.00022465,2]
[380239673,1755622270401,-685.48,0.00022465,2]
[380239674,1755622270410,-1090.94,0.00022465,2]
[380239675,1755622270419,-899.76,0.00022465,2]
[380239676,1755622270429,-1040.67,0.00022465,2]
[380239677,1755622270438,-496.36,0.00022465,2]
[380239678,1755622270448,-748.34,0.00022465,2]
[380239679,1755622270457,-480.0,0.00022465,2]
[380239680,1755622270467,-615.91,0.00022465,2]
[380239681,1755622270482,-973.55,0.00022465,2]
[380239682,1755622270491,-480.0,0.00022465,2]
[380239683,1755622270501,-480.0,0.00022465,2]
[380239684,1755622270510,-480.0,0.00022465,2]
[380239685,1755622270519,-3502.95,0.00022465,2]
[380239686,1755622270529,-2118.85,0.00022465,2]
[380239687,1755622270539,-1200.84,0.00022465,2]
[380239688,1755622270548,-577.5,0.00022465,2]
[380239689,1755622270557,-675.63,0.00022465,2]
[380239690,1755622270567,-535.82,0.00022465,2]
[380239691,1755622270577,-480.0,0.00022465,2]
[380239692,1755622270586,-1462.46,0.00022465,2]
[380239693,1755622270596,-958.15,0.00022465,2]
[380239694,1755622270606,-480.0,0.00022465,2]
[380239695,1755622270616,-684.55,0.00022465,2]
[380239696,1755622270625,-480.0,0.00022465,2]
[380239697,1755622270635,-809.37,0.00022465,2]
[380239698,1755622270645,-822.15,0.00022465,2]
[380239699,1755622270655,-1876.86,0.00022465,2]
[380239700,1755622270665,-485.73,0.00022465,2]
[380239701,1755622270675,-594.43,0.00022465,2]
[380239702,1755622270684,-2779.77,0.00022465,2]
[380239703,1755622270694,-611.1,0.00022465,2]
[380239704,1755622270704,-635.9,0.00022465,2]
[380239705,1755622270713,-480.0,0.00022465,2]
[380239706,1755622270725,-2697.84,0.00022465,2]
[380239707,1755622270734,-2946.82,0.00022465,2]
[380239708,1755622270743,-810.05,0.00022465,2]
[380239709,1755622270752,-1509.61,0.00022465,2]
[380239710,1755622270762,-1082.62,0.00022465,2]
[380239711,1755622270771,-2422.45,0.00022465,2]
[380239712,1755622270780,-516.51,0.00022465,2]
[380239713,1755622270790,-480.0,0.00022465,2]
[380239714,1755622270799,-480.0,0.00022465,2]
[380239715,1755622270808,-480.0,0.00022465,2]
[380239716,1755622270818,-480.0,0.00022465,2]
[380239717,1755622270827,-2620.55,0.00022465,2]
[380239718,1755622270837,-480.0,0.00022465,2]
[380239719,1755622270847,-604.32,0.00022465,2]
[380239720,1755622270856,-846.8,0.00022465,2]
[380239721,1755622270865,-480.0,0.00022465,2]
[380239722,1755622270877,-663.09,0.00022465,2]
[380239723,1755622270887,-519.86,0.00022465,2]
[380239724,1755622270896,-2167.0,0.00022465,2]
[380239725,1755622270906,-705.07,0.00022465,2]
[380239726,1755622270915,-7328.71,0.00022465,2]
[380239727,1755622270925,-538.37,0.00022465,2]
[380239728,1755622270938,-590.33,0.00022465,2]
[380239729,1755622270948,-1500.0,0.00022465,2]
[380239730,1755622270957,-298.791262,0.00022466,2]
[380239731,1755622270974,-151.0,0.00022466,2]
[380239732,1755622270986,-876.0,0.00022466,2]
[380239733,1755622270996,-168.0,0.00022497,2]
[380239734,1755622271005,-1500.0,0.00022499,2]
[380239735,1755622271014,-805.24713778,0.00022499,2]
[380239736,1755622271023,-1500.0,0.00022499,2]
[380239737,1755622271033,-1500.0,0.00022499,2]
[380239738,1755622271043,-1500.0,0.00022499,2]
[380239739,1755622271052,-1500.0,0.00022499,2]
[380239740,1755622271062,-1299.74652647,0.00022499,2]
[380239741,1755622271071,-1376.48468622,0.00022499,2]
[380239742,1755622271081,-1503.97999172,0.00022499,2]
[380239743,1755622271090,-949.36891552,0.00022499,2]
[380239744,1755622271100,-1500.0,0.00022499,2]
[380239745,1755622271110,-1500.0,0.00022499,2]
[380239746,1755622271119,-1260.95941026,0.00022499,2]
[380239747,1755622271129,-1001.01715711,0.00022499,2]
[380239748,1755622271137,-206.90087136,0.00022499,2]
[380239749,1755622271146,-1500.0,0.00022499,2]
[380239750,1755622271155,-1017.70336959,0.00022499,2]
[380239751,1755622271165,-1500.0,0.00022499,2]
[380239752,1755622271174,-1500.0,0.00022499,2]
[380239753,1755622271183,-1500.0,0.00022499,2]
[380239754,1755622271194,-1500.0,0.00022499,2]
[380239755,1755622271203,-1500.0,0.00022499,2]
[380239756,1755622271213,-1500.0,0.00022499,2]
[380239757,1755622271226,-1500.0,0.00022499,2]
[380239758,1755622271235,-1500.0,0.00022499,2]
[380239759,1755622271245,-1500.0,0.00022499,2]
[380239760,1755622271254,-1500.0,0.00022499,2]
[380239761,1755622271263,-645.0,0.000225,2]
[380239762,1755622271272,-1500.0,0.00022506,2]
[380239763,1755622271282,-217.0,0.00022514,2]
[380239764,1755622271291,-1567.80879601,0.00022529,2]
[380239765,1755622271300,-277.3,0.00022531,4]
[380239766,1755622271309,-587.0,0.00022545,2]
[380239767,1755622271318,-155.99821594,0.000226,2]
[380239768,1755622271327,-400.0,0.00022603,2]
[380239769,1755622271336,-660.0,0.00022658,2]
[380239770,1755622271345,-3000.0,0.00022712,2]
[380239771,1755622271356,-3000.0,0.00022712,2]
[380239772,1755622271365,-3000.0,0.00022712,2]
[380239773,1755622271375,-6998.28,0.00022739,2]
[380239774,1755622271385,-166.18688852,0.00022739,2]
[380239775,1755622271395,-966.56,0.00022739,2]
[380239776,1755622271405,-480.0,0.00022739,2]
[380239777,1755622271417,-480.0,0.00022739,2]
[380239778,1755622271525,-665.71,0.00022739,2]
[380239779,1755622271535,-1099.69,0.00022739,2]
[380239780,1755622271545,-4077.21,0.00022739,2]
[380239781,1755622271554,-151.0,0.00022739,7]
[380239782,1755622271564,-530.28,0.00022739,2]
[380239783,1755622271574,-480.0,0.00022739,2]
[380239784,1755622271583,-989.73,0.00022739,2]
[380239785,1755622271592,-820.05,0.00022739,2]
[380239786,1755622271602,-665.88,0.00022739,2]
[380239787,1755622271611,-1385.41,0.00022739,2]
[380239788,1755622271621,-685.48,0.00022739,2]
[380239789,1755622271633,-1090.94,0.00022739,2]
[380239790,1755622271643,-899.76,0.00022739,2]
[380239791,1755622271653,-1040.67,0.00022739,2]
[380239792,1755622271662,-496.36,0.00022739,2]
[380239793,1755622271673,-748.34,0.00022739,2]
[380239794,1755622271683,-480.0,0.00022739,2]
[380239795,1755622271693,-615.91,0.00022739,2]
[380239796,1755622271703,-973.55,0.00022739,2]
[380239797,1755622271714,-480.0,0.00022739,2]
[380239798,1755622271726,-480.0,0.00022739,2]
[380239799,1755622271736,-480.0,0.00022739,2]
[380239800,1755622271746,-3502.95,0.00022739,2]
[380239801,1755622271756,-2118.85,0.00022739,2]
[380239802,1755622271766,-1200.84,0.00022739,2]
[380239803,1755622271776,-577.5,0.00022739,2]
[380239804,1755622271785,-675.63,0.00022739,2]
[380239805,1755622271796,-535.82,0.00022739,2]
[380239806,1755622271807,-480.0,0.00022739,2]
[380239807,1755622271817,-1462.46,0.00022739,2]
[380239808,1755622271827,-958.15,0.00022739,2]
[380239809,1755622271836,-480.0,0.00022739,2]
[380239810,1755622271846,-684.55,0.00022739,2]
[380239811,1755622271858,-480.0,0.00022739,2]
[380239812,1755622271868,-809.37,0.00022739,2]
[380239813,1755622271878,-822.15,0.00022739,2]
[380239814,1755622271887,-1876.86,0.00022739,2]
[380239815,1755622271897,-485.73,0.00022739,2]
[380239816,1755622271908,-594.43,0.00022739,2]
[380239817,1755622271918,-2779.77,0.00022739,2]
[380239818,1755622271927,-611.1,0.00022739,2]
[380239819,1755622271938,-635.9,0.00022739,2]
[380239820,1755622271948,-480.0,0.00022739,2]
[380239821,1755622271958,-2697.84,0.00022739,2]
[380239822,1755622271972,-2946.82,0.00022739,2]
[380239823,1755622271985,-810.05,0.00022739,2]
[380239824,1755622271994,-1509.61,0.00022739,2]
[380239825,1755622272005,-1082.62,0.00022739,2]
[380239826,1755622272015,-2422.45,0.00022739,2]
[380239827,1755622272025,-516.51,0.00022739,2]
[380239828,1755622272034,-480.0,0.00022739,2]
[380239829,1755622272044,-480.0,0.00022739,2]
[380239830,1755622272055,-480.0,0.00022739,2]
[380239831,1755622272064,-480.0,0.00022739,2]
[380239832,1755622272074,-2620.55,0.00022739,2]
[380239833,1755622272083,-480.0,0.00022739,2]
[380239834,1755622272093,-604.32,0.00022739,2]
[380239835,1755622272102,-846.8,0.00022739,2]
[380239836,1755622272112,-480.0,0.00022739,2]
[380239837,1755622272121,-663.09,0.00022739,2]
[380239838,1755622272132,-519.86,0.00022739,2]
[380239839,1755622272141,-2167.0,0.00022739,2]
[380239840,1755622272150,-705.07,0.00022739,2]
[380239841,1755622272160,-7328.71,0.00022739,2]
[380239842,1755622272169,-538.37,0.00022739,2]
[380239843,1755622272178,-590.33,0.00022739,2]
[380239844,1755622272188,-876.0,0.0002274,2]
[380239845,1755622272198,-1151.0,0.00022765,2]
[380239846,1755622272208,-2002.95,0.00022766,2]
[380239847,1755622272218,-8087.18579842,0.00022789,2]
[380239848,1755622272230,-1000.0,0.00022826,2]
[380239849,1755622272241,-217.0,0.00022866,2]
[380239850,1755622272251,-155.238108,0.00022875,3]
[380239851,1755622272260,-158.49559511,0.00022877,2]
[380239852,1755622272270,-160.91745435,0.00022877,2]
[380239853,1755622272280,-500.68861223,0.00022891,2]
[380239854,1755622272290,-2000.0,0.00022952,2]
[380239855,1755622272300,-688.34441399,0.00022952,2]
[380239856,1755622272311,-2000.0,0.0002296,2]
[380239857,1755622272322,-1001.62154399,0.0002296,2]
[380239858,1755622272333,-253.5188575,0.00022998,2]
[380239859,1755622272343,-1385.06922325,0.00022998,2]
[380239860,1755622272353,-1501.26613932,0.00022998,2]
[380239861,1755622272363,-1249.65345509,0.00022998,2]
[380239862,1755622272374,-493.46776726,0.00022998,2]
[380239863,1755622272385,-1800.47362561,0.00023,2]
[380239864,1755622272394,-2001.81985736,0.00023,2]
[380239865,1755622272404,-5077.38743498,0.00023,2]
[380239866,1755622272415,-2944.14800187,0.00023,2]
[380239867,1755622272425,-160.0,0.00023,3]
[380239868,1755622272435,-12266.09254533,0.00023,2]
[380239869,1755622272446,-160.0,0.00023,3]
[380239870,1755622272457,-12685.85563623,0.00023,3]
[380239871,1755622272467,-160.0,0.00023,3]
[380239872,1755622272477,-160.0,0.00023,3]
[380239873,1755622272487,-160.0,0.00023,2]
[380239874,1755622272496,-232.21311493,0.00023,3]
[380239875,1755622272506,-160.0,0.00023,3]
[380239876,1755622272516,-216.8835046,0.00023,3]